{"text_format":"1","workbook":"xlsx","n_sheets":5,"sheets":["CLASSIFICAÇÃO GERAL 2022","jan23","fev23","mar23","abr23"],"not_rendered":{"charts":0,"images":2,"macros":1,"external_links":0,"defined_names":1,"comments":0,"pivot_tables":0},"unopened":[],"bounds":{"document_bytes":16777216,"sheet_cells":100000,"rows_first":2000,"rows_last":500,"rows_between":2000,"halvings":0,"cell_chars":16384,"cell_head_chars":4096},"cells_cut":0,"cells_raw":0,"read":"whole","date_system":"1900"}

{"sheet":"CLASSIFICAÇÃO GERAL 2022","index":0,"n_rows":144,"n_cols":5,"rows_kept":144,"cut":false,"hidden":false,"merged":[[0,0,0,4],[1,0,1,4]]}
["CLASSIFICAÇÃO GERAL ACPA – TEMPORADA VERÃO 2023 DOMINGO"]
["COLEIRO FIBRA","Pássaro","Proprietário","Origem","Pontos"]
["POSIÇÃO","NOME DO PÁSSARO","NOME DO PROPRIETÁRIO","ORIGEM (CIDADE)","PONTUAÇÃO"]
["1º","IMPÉRIO","LUIZINHO","PETRÓPOLIS",{"$f":"29+29+29+20+23+28+29+30+27+28+28","v":300}]
["2º","PITBULL","FREDERICO SIMAS","PETRÓPOLIS",{"$f":"30+28+27+27+27+28+28+22+24","v":241}]
["3º","VENOM","MURILO","TRÊS RIOS",{"$f":"26+25+26+24+21+23+28+25+11","v":209}]
["4º","CARIOQUINHA","JONAS","TRÊS RIOS",{"$f":"25+27+29+27+30+29+29","v":196}]
["5º","CABALA","LEVI","TRÊS RIOS",{"$f":"20+29+24+26+30+23+15","v":167}]
["6º","PICA-PAU","ADÃO","TRÊS RIOS",{"$f":"13+13+21+11+20+18+26+17+15","v":154}]
["7º","VINTE DOIS","ALISSON","TRÊS RIOS",{"$f":"21+27+19+22+22+21","v":132}]
["8º","TREM","TAIDISON","TRÊS RIOS",{"$f":"20+22+19+22+23+14","v":120}]
["9º","COMETA","JOÃO MARCOS","AREAL",{"$f":"25+28+24+15+22","v":114}]
["10º","PSG","BETINHO","TRÊS RIOS",{"$f":"22+22+22+17+16+13","v":112}]
["11º","COYOTE","GABRIEL","MIRACEMA/TRÊS RIOS",{"$f":"28+11+19+14+23","v":95}]
["12º","LOBO MAU","RAFAEL LAMBARI","PETRÓPOLIS",{"$f":"29+15+25+26","v":95}]
["13º","BONES","EDIWILSON","PETRÓPOLIS",{"$f":"28+25+30","v":83}]
["14º","ALUCINADO","BERNARDO","ANTA",{"$f":"24+23+18+17","v":82}]
["15º","CASCAVEL","BRUNO BRANCO","PETRÓPOLIS",{"$f":"30+29+22","v":81}]
["16º","FAIXA PRETA","PAULO HENRIQUE","PETRÓPOLIS",{"$f":"30+24+25","v":79}]
["17º","DIM","UELINTON","TRÊS RIOS",{"$f":"24+23+27","v":74}]
["18º","TALISMÃ","REGINALDO","PETRÓPOLIS",{"$f":"16+21+19+15","v":71}]
["19º","SUPREMO","JOÃOZINHO","BEMPOSTA",{"$f":"26+23+19","v":68}]
["20º","MOLEQUE JR","WELLINGTON ARGON","PETRÓPOLIS",{"$f":"24+25+17","v":66}]
["21º","TORPEDO","DAVISON","TRÊS RIOS",{"$f":"26+19+21","v":66}]
["22º","BIRO BIRO","PAULINHO","TRÊS RIOS",{"$f":"16+15+13+20","v":64}]
["23º","RAGNAR","KLEBER","AREAL",{"$f":"26+20+18","v":64}]
["24º","MALUQUINHO","MURILO","AREAL",{"$f":"25+22+14","v":61}]
["25º","SR MIAGUI","NATHAN","LEVY GASPARIAN",{"$f":"24+18+19","v":61}]
["26º","NEGO","MÁRCIO","TRÊS RIOS",{"$f":"30+30","v":60}]
["27º","PODEROSO CHEFINHO","BRUNO BRANCO","PETRÓPOLIS",{"$f":"17+21+21","v":59}]
["28º","SEDEX","NATHAN","LEVY GASPARIAN",{"$f":"20+19+18","v":57}]
["29º","GOKUN","MATHEUS/LUCAS","JUIZ DE FORA",{"$f":"30+26","v":56}]
["30º","TÔ LOUCO","VINÍCIUS","TRÊS RIOS",{"$f":"27+27","v":54}]
["31º","BRASILEIRINHO","GUSTAVO","BEMPOSTA",{"$f":"29+24","v":53}]
["32º","DESTRUIDOR","VALDECIR","PETRÓPOLIS",{"$f":"23+29","v":52}]
["33º","SAGAT","HERALDO","PETRÓPOLIS",{"$f":"23+26","v":49}]
["34º","CHACAL","ROMÁRIO","PETRÓPOLIS",{"$f":"24+23","v":47}]
["35º","TUBARÃO","MAURO JR.","TRÊS RIOS",{"$f":"15+16+14","v":45}]
["36º","FERA","JESSÉ JÚNIOR","TRÊS RIOS",{"$f":"27+17","v":44}]
["37º","CAMISA 10","JONAS","TRÊS RIOS",{"$f":"22+17","v":39}]
["38º","KOWALSKI","RICHARDSON","LEVY GASPARIAN",{"$f":"23+16","v":39}]
["39º","MITO","LUIZINHO","PETRÓPOLIS",{"$f":"18+20","v":38}]
["40º","RD","ROBSON CAMPOS","PETRÓPOLIS",{"$f":"20+16","v":36}]
["41º","FLECHA","CLODOALDO","TRÊS RIOS",{"$f":"24+11","v":35}]
["42º","GLORIOSO","ISAÍAS","TRÊS RIOS",{"$f":"15+16","v":31}]
["43º","BICHO DOIDO","EDUARDO","TRÊS RIOS",{"$f":"18+12","v":30}]
["44º","CAPITÃO GANCHO","MARCUS VINICIUS","SÃO JOÃO DEL REI",30]
["45º","CASSINO","RAFAEL","NITERÓI",30]
["46º","SCOOBY","BRUNO MUNIZ","SAPUCAIA",30]
["47º","AGRO","REINALDO/LI","BARBACENA/MG",29]
["48º","BICO DE OURO","KLEBER","AREAL",{"$f":"11+18","v":29}]
["49º","GRÃO VIZIR","GABRIEL/ALEX LAMA","PARAIBA DO SUL",28]
["50º","OROCHI","NATHAN","LEVY GASPARIAN",28]
["51º","REALEZA","VINÍCIUS","SÃO JOSÉ",28]
["52º","CARIOCA","FABIANO","JUIZ DE FORA",27]
["53º","MAVERICK","MARCÃO","JUIZ DE FORA",27]
["54º","CARA PRETA","DIEGO","MATIAS BARBOSA",26]
["55º","CARIOCA","FABIANO","JUIZ DE FORA",26]
["56º","DESEJO","ROMÁRIO","PETRÓPOLIS",26]
["57º","V8","EDER","TRÊS RIOS",{"$f":"13+13","v":26}]
["58º","AZ DE OURO","THIAGO FREITAS","AREAL",25]
["59º","MANHATTAN","FABIANO","MATIAS BARBOSA",25]
["60º","PALADINO","JOÃOZINHO","BEMPOSTA",25]
["61º","SADAN","PABLO","PETRÓPOLIS",25]
["62º","VIDAL","HENRIQUE","TRÊS RIOS",24]
["63º","FANTÁSTICO","EDUARDO","TRÊS RIOS",{"$f":"11+12","v":23}]
["64º","PERNETA","LUIZ FELIPE","?",23]
["65º","ZORRO","OTÁVIO","TRÊS RIOS",22]
["66º","ASTÚCIA","EDER","JUIZ DE FORA",21]
["67º","BRT","SANDRO","ANTA",21]
["68º","SOBERANO","EDSON","PETRÓPOLIS",21]
["69º","TROVÃO","LUCIMAR/LUIZ HENRIQUE","TRÊS RIOS",21]
["70º","URUS","MÁRCIO","PETRÓPOLIS",21]
["71º","DEBOCHE","?","SAPUCAIA",20]
["72º","SEM LIMITE","ROMÁRIO","UBÁ",20]
["73º","TÔ LOUCO","HENRIQUE","TRÊS RIOS",20]
["74º","VEDITA","JOSÉ ALVES","SANTOS DUMONT",20]
["75º","APOLLO","JOSÉ ROBERTO","PETRÓPOLIS",19]
["76º","CIDADE ALERTA","HIGO BATALHA","TRÊS RIOS",19]
["77º","FURIOSO","EDIMAR LEITEIRO","PETRÓPOLIS",19]
["78º","GÁRGULA","FERNANDO","PETRÓPOLIS",19]
["79º","MALUCO","GIBA","TRÊS RIOS",19]
["80º","?","RICHARLISSON","LEVY GASPARIAN",18]
["81º","220 VOLTS","MARCELO","PETRÓPOLIS",18]
["82º","ALFA","FERNANDO SIMAS","PETRÓPOLIS",18]
["83º","GARGALHADA","EDINHO","MATIAS BARBOSA",18]
["84º","NOVIDADE","CARLOS ALBERTO","JUIZ DE FORA",18]
["85º","BIG HIRO","LÉO","PETRÓPOLIS",17]
["86º","CRUEL","VITOR","PETRÓPOLIS",17]
["87º","GLOCK","DOUGLAS","TRÊS RIOS",17]
["88º","PEDREIRA","UILIAN","TRÊS RIOS",17]
["89º","PREDADOR","JUNINHO","?",17]
["90º","TREM BÃO","MARCELO SOJUF","JUIZ DE FORA",17]
["91º","BITOLA","LUCAS","TRÊS RIOS",16]
["92º","CARA PRETA","FÁBIO PEREIRA","TRÊS RIOS",16]
["93º","FAIXA PRETA","CLEBER","TRÊS RIOS",16]
["94º","FILHOTE","LUCIANO","TRÊS RIOS",16]
["95º","PIAU","?","PETRÓPOLIS",16]
["96º","PQD","CLEBER","TRÊS RIOS",16]
["97º","CANIBAL","LUCIANO","TRÊS RIOS",15]
["98º","COMETA","GIBA","TRÊS RIOS",15]
["99º","GREGO","GABRIEL","?",15]
["100º","JAGUNÇO","NATHAN/ELLOAH","LEVY GASPARIAN",15]
["101º","LOUCO","CORREIA","CABO FRIO",15]
["102º","CRONOS","FABINHO","TRÊS RIOS",14]
["103º","FERA","EDUARDO","TRÊS RIOS",14]
["104º","GOL DE PLACA","FÁBIO BUCHECHA","PETRÓPOLIS",14]
["105º","MAMBA NEGRA","EDER","TRÊS RIOS",14]
["106º","P.T.","PABLO","TRÊS RIOS",14]
["107º","SABADÃO","CLODOALDO","TRÊS RIOS",14]
["108º","SAFADAO","CLODOALDO","TRÊS RIOS",14]
["109º","SPARTA","RODRIGO TCHU","PETRÓPOLIS",14]
["110º","WALTER","FÁBIO/WESLEY","?",14]
["111º","001","ROBSON CAMPOS","PETRÓPOLIS",13]
["112º","BARCELONA","LUCAS CHAGAS","PETRÓPOLIS",13]
["113º","KING","RICARDO/DANIEL","ANTA",13]
["114º","LIGEIRO","TONINHO","JUIZ DE FORA",13]
["115º","MARGARINA","CLÁUDIO MÁRCIO","TRÊS RIOS",13]
["116º","MATRIX","DANIEL VALLE","PETRÓPOLIS",13]
["117º","TROLL","MURILO","TRÊS RIOS",13]
["118º","A LENDA","STENIO","MATIAS BARBOSA",12]
["119º","BAD BOY","TAUAN/MARQUINHOS","MAR DE ESPANHA",12]
["120º","FAÍSCA","LEHARTE","TRÊS RIOS",12]
["121º","FUMAÇA","LEHARTE","LEVY GASPARIAN",12]
["122º","MALVADÃO","WILIAN DOUGLAS","TRÊS RIOS",12]
["123º","MALVADÃO","BRUNO BRANCO","PETRÓPOLIS",12]
["124º","MAMBA","GIBA","TRÊS RIOS",12]
["125º","SENINHA","MURILO NEVES","AREAL",12]
["126º","TERRORISTA","JOÃO MARCOS","AREAL",12]
["127º","WOLVERINE","ALCEIR","PETRÓPOLIS",12]
["128º","ZANGADO","MATHEUS PASSOS","TRÊS RIOS",12]
["129º","BOA IDEIA","CÉSAR MANDÍBULA","PETRÓPOLIS",11]
["130º","BORIS","VALDECIR","PETRÓPOLIS",11]
["131º","CARIOCA","PAULINHO","TRÊS RIOS",11]
["132º","SPIDER","DAVISON","TRÊS RIOS",11]
["133º","THOR","RODRIGO","PETRÓPOLIS",11]
["134º","VENOM","LÉO/FERNANDO","PETRÓPOLIS",11]
["135º"]
["135º"]
["136º"]
["137º"]
["138º"]
["139º"]
["140º"]

{"sheet":"jan23","index":1,"n_rows":22,"n_cols":34,"rows_kept":22,"cut":false,"hidden":false,"merged":[[0,7,0,12],[0,14,0,19],[0,21,0,26],[0,0,0,5],[0,28,0,33]]}
["31/12/2022 (SÁBADO)",null,null,null,null,null,null,"2023-01-08",null,null,null,null,null,null,"2023-01-15",null,null,null,null,null,null,"2023-01-22",null,null,null,null,null,null,"2023-01-29"]
["POS.","PÁSSARO","PROPRIETÁRIO","ORIGEM","CANTOS","PONTOS",null,"POS.","PÁSSARO","PROPRIETÁRIO","ORIGEM","CANTOS","PONTOS",null,"POS.","PÁSSARO","PROPRIETÁRIO","ORIGEM","CANTOS","PONTOS",null,"POS.","PÁSSARO","PROPRIETÁRIO","ORIGEM","CANTOS","PONTOS",null,"POS.","PÁSSARO","PROPRIETÁRIO","ORIGEM","CANTOS","PONTOS"]
["1º","PITBULL","FREDERICO","PETRÓPOLIS",157,30,null,"1º","CASCAVEL","BRUNO BRANCO","PETRÓPOLIS",149,30,null,"1º","FAIXA PRETA","PAULO HENRIQUE","AREAL",133,30,null,"1º","NEGO","MÁRCIO","TRÊS RIOS",173,30,null,"1º","NEGO","MÁRCIO","TRÊS RIOS",187,30]
["2º","IMPÉRIO","LUIZINHO","PETRÓPOLIS",156,29,null,"2º","IMPÉRIO","LUIZINHO","PETRÓPOLIS",127,29,null,"2º","LOBO MAL","RAFAEL LAMBARI","PETRÓPOLIS",132,29,null,"2º","IMPÉRIO","LUIZINHO","PETRÓPOLIS",141,29,null,"2º","DESTRUIDOR","VALDECIR","PETRÓPOLIS",145,29]
["3º","REALEZA","VINÍCIUS","SÃO JOSÉ",121,28,null,"3º","COYOTE","GABRIEL","MIRACEMA/TRÊS RIOS",125,28,null,"3º","COMETA","JOÃO MARCOS","AREAL",120,28,null,"3º","PITBULL","FREDERICO SIMAS","PETRÓPOLIS",124,28,null,"3º","BONES","EDIWILSON","PETRÓPOLIS",141,28]
["4º","FERA","JESSÉ JÚNIOR","TRÊS RIOS",120,27,null,"4º","TÔ LOUCO","VINÍCIUS","TRÊS RIOS",104,27,null,"4º","DIM","UELINTON","TRÊS RIOS",120,27,null,"4º","TÔ LOUCO","VINÍCIUS","TRÊS RIOS",119,27,null,"4º","PITBULL","FREDERICO SIMAS","PETRÓPOLIS",140,27]
["5º","VENOM","MURILO","TRÊS RIOS",110,26,null,"5º","SUPREMO","JOÃOZINHO","BEMPOSTA",98,26,null,"5º","SAGAT","HERALDO","PETRÓPOLIS",106,26,null,"5º","VENOM","MURILO","TRÊS RIOS",113,26,null,"5º","CARA PRETA","DIEGO","MATIAS BARBOSA",123,26]
["6º","MALUQUINHO","MURILO NEVES","AREAL",109,25,null,"6º","COMETA","JOÃO MARCOS","AREAL",95,25,null,"6º","VENOM","MURILO","TRÊS RIOS",106,25,null,"6º","SADAN","PABLO","PETRÓPOLIS",102,25,null,"6º","MANHATTAN","FABIANO","MATIAS BARBOSA",119,25]
["7º","DIM","UELINGTON","TRÊS RIOS",97,24,null,"7º","VIDAL","HENRIQUE","TRÊS RIOS",89,24,null,"7º","MOLEQUE JR","WELLINGTON ARGON","PETRÓPOLIS",97,24,null,"7º","COMETA","JOÃO MARCOS","AREAL",95,24,null,"7º","VENOM","MURILO","TRÊS RIOS",116,24]
["8º","SAGAT","HERALDO","PETRÓPOLIS",83,23,null,"8º","DIM","UELINTON","TRÊS RIOS",75,23,null,"8º","SUPREMO","JOÃOZINHO","BEMPOSTA",92,23,null,"8º","DESTRUIDOR","VALDECIR","PETRÓPOLIS",92,23,null,"8º","ALUCINADO","BERNARDO","ANTA",115,23]
["9º","PSG","BETINHO","TRÊS RIOS",83,22,null,"9º","CAMISA 10","JONAS","TRÊS RIOS",73,22,null,"9º","MALUQUINHO","MURILO","AREAL",92,22,null,"9º","TREM","TAIDISON","TRÊS RIOS",91,22,null,"9º","PSG","BETINHO","TRÊS RIOS",113,22]
["10º","URUS","MÁRCIO","PETRÓPOLIS",79,21,null,"10º","PODEROSO CHEFINHO","BRUNO BRANCO","PETRÓPOLIS",64,21,null,"10º","BRT","SANDRO","ANTA",91,21,null,"10º","VINTE DOIS","ALISSON","TRÊS RIOS",87,21,null,"10º","PICA-PAU","ADÃO","TRÊS RIOS",103,21]
["11º","RD","ROBSON CAMPOS","PETRÓPOLIS",76,20,null,"11º","TREM","TAIDISON","TRÊS RIOS",57,20,null,"11º","SEDEX","NATHAN","LEVY GASPARIAN",89,20,null,"11º","CABALA","LEVI","TRÊS RIOS",79,20,null,"11º","IMPÉRIO","LUIZINHO","PETRÓPOLIS",101,20]
["12º","VINTE DOIS","ALISSON","TRÊS RIOS",72,19,null,"12º","GÁRGULA","FERNANDO","PETRÓPOLIS",54,19,null,"12º","FURIOSO","EDIMAR LEITEIRO","PETRÓPOLIS",85,19,null,"12º","COYOTE","GABRIEL","MIRACEMA/TRÊS RIOS",79,19,null,"12º","SUPREMO","JOÃOZINHO","BEMPOSTA",91,19]
["13º","ALFA","FERNANDO SIMAS","PETRÓPOLIS",71,18,null,"13º","BICHO DOIDO","EDUARDO","TRÊS RIOS",52,18,null,"13º","220 VOLTS","MARCELO","PETRÓPOLIS",84,18,null,"13º","?","RICHARLISSON","LEVY GASPARIAN",76,18,null,"13º","GARGALHADA","EDINHO","MATIAS BARBOSA",89,18]
["14º","PODEROSO CHEFINHO","BRUNO BRANCO","PETRÓPOLIS",65,17,null,"14º","FERA","JESSÉ JÚNIOR","TRÊS RIOS",50,17,null,"14º","CAMISA 10","JONAS","TRÊS RIOS",84,17,null,"14º","PREDADOR","JUNINHO","?",76,17,null,"14º","BIG HIRO","LÉO","PETRÓPOLIS",84,17]
["15º","PIAU","?","PETRÓPOLIS",64,16,null,"15º","CARA PRETA","FÁBIO PEREIRA","TRÊS RIOS",42,16,null,"15º","RD","ROBSON CAMPOS","TRÊS RIOS",80,16,null,"15º","BITOLA","LUCAS","TRÊS RIOS",70,16,null,"15º","BIRO BIRO","PAULINHO","?",81,16]
["16º","LOBO MAU","RAFAEL LAMBARI","PETRÓPOLIS",60,15,null,"16º","JAGUNÇO","NATHAN","LEVY GASPARIAN",41,15,null,"16º","GREGO","GABRIEL","?",78,15,null,"16º","TUBARÃO","MAURO JR.","TRÊS RIOS",64,15,null,"16º","COMETA","JOÃO MARCOS","AREAL",79,15]
["17º","GOL DE PLACA","FÁBIO BUCHECHA","PETRÓPOLIS",57,14,null,"17º","FERA","EDUARDO","TRÊS RIOS",38,14,null,"17º","P.T.","PABLO","TRÊS RIOS",73,14,null,"17º","MAMBA NEGRA","EDER","TRÊS RIOS",61,14,null,"17º","COYOTE","GABRIEL","MIRACEMA/TRÊS RIOS",78,14]
["18º","MATRIX","DANIEL VALLE","PETRÓPOLIS",38,13,null,"18º","PICA-PAU","ADÃO","TRÊS RIOS",36,13,null,"18º","KING","RICARDO/DANIEL","ANTA",72,13,null,"18º","PICA-PAU","ADÃO","TRÊS RIOS",47,13,null,"18º","MARGARINA","CLÁUDIO MÁRCIO","TRÊS RIOS",76,13]
["19º","SENINHA","MURILO NEVES","AREAL",38,12,null,"19º","MAMBA","GIBA","TRÊS RIOS",30,12,null,"19º","TERRORISTA","JOÃO MARCOS","AREAL",72,12,null,"19º","FAÍSCA","LEHARTE","TRÊS RIOS",46,12,null,"19º","FUMAÇA","LEHARTE","LEVY GASPARIAN",74,12]
["20º","VENOM","LÉO/FERNANDO","PETRÓPOLIS",31,11,null,"20º","METRALHA","HENRIQUE","TRÊS RIOS",27,11,null,"20º","COYOTE","GABRIEL","MIRACEMA/TRÊS RIOS",69,11,null,"20º","CARIOCA","PAULINHO","TRÊS RIOS",35,11,null,"20º","BICO DE OURO","KLEBER","AREAL",72,11]

{"sheet":"fev23","index":2,"n_rows":22,"n_cols":27,"rows_kept":22,"cut":false,"hidden":false,"merged":[[0,0,0,5],[0,7,0,12],[0,14,0,19],[0,21,0,26]]}
["2023-02-05",null,null,null,null,null,null,"2023-02-12",null,null,null,null,null,null,"2023-02-19",null,null,null,null,null,null,"2023-02-26"]
["POS.","PÁSSARO","PROPRIETÁRIO","ORIGEM","CANTOS","PONTOS",null,"POS.","PÁSSARO","PROPRIETÁRIO","ORIGEM","CANTOS","PONTOS",null,"POS.","PÁSSARO","PROPRIETÁRIO","ORIGEM","CANTOS","PONTOS",null,"POS.","PÁSSARO","PROPRIETÁRIO","ORIGEM","CANTOS","PONTOS"]
["1º","SCOOBY","BRUNO MUNIZ","SAPUCAIA",208,30,null,"1º","CAPITÃO GANCHO","MARCUS VINICIUS","SÃO JOÃO DEL REI",169,30,null,"1º","CASSINO","RAFAEL","NITERÓI",152,30,null,"1º","CABALA","LEVI","TRÊS RIOS",172,30]
["2º","CABALA","LEVI","TRÊS RIOS",165,29,null,"2º","CASCAVEL","BRUNO BRANCO","PETRÓPOLIS",147,29,null,"2º","IMPÉRIO","LUIZINHO","PETRÓPOLIS",145,29,null,"2º","CARIOQUINHA","JONAS","TRÊS RIOS",165,29]
["3º","OROCHI","NATHAN","LEVY GASPARIAN",138,28,null,"3º","IMPÉRIO","LUIZINHO","PETRÓPOLIS",131,28,null,"3º","GRÃO VIZIR","GABRIEL/ALEX LAMA","PARAIBA DO SUL",139,28,null,"3º","VENOM","MURILO","TRÊS RIOS",138,28]
["4º","VINTE DOIS","ALISSON","TRÊS RIOS",123,27,null,"4º","CARIOQUINHA","JONAS","TRÊS RIOS",124,27,null,"4º","PITBULL","FREDERICO","PETRÓPOLIS",125,27,null,"4º","PITBULL","FREDERICO","PETRÓPOLIS",136,27]
["5º","RAGNAR","KLEBER","AREAL",113,26,null,"5º","DESEJO","ROMÁRIO","PETRÓPOLIS",114,26,null,"5º","CABALA","LEVI","TRÊS RIOS",124,26,null,"5º","TORPEDO","DAVISON","TRÊS RIOS",103,26]
["6º","CARIOQUINHA","JONAS","TRÊS RIOS",102,25,null,"6º","AZ DE OURO","THIAGO FREITAS","AREAL",114,25,null,"6º","LOBO MAL","RAFAEL LAMBARI","PETRÓPOLIS",117,25,null,"6º","MULEQUE JR","WELLINGTON ARGON","PETRÓPOLIS",102,25]
["7º","ALUCINADO","BERNARDO","ANTA",100,24,null,"7º","CABALA","LEVI","TRÊS RIOS",113,24,null,"7º","SR MIAGUI","NATHAN","LEVY GASPARIAN",109,24,null,"7º","FLECHA","CLODOALDO","TRÊS RIOS",98,24]
["8º","IMPÉRIO","LUIZINHO","PETRÓPOLIS",99,23,null,"8º","VENOM","MURILO","TRÊS RIOS",104,23,null,"8º","PERNETA","LUIZ FELIPE","?",105,23,null,"8º","KOWALSKI","RICHARDSON","LEVY GASPARIAN",95,23]
["9º","PSG","BETINHO","TRÊS RIOS",93,22,null,"9º","VINTE DOIS","ALISSON","TRÊS RIOS",100,22,null,"9º","VINTE DOIS","ALISSON","TRÊS RIOS",103,22,null,"9º","COMETA","JOÃO MARCOS","AREAL",94,22]
["10º","VENOM","MURILO","TRÊS RIOS",79,21,null,"10º","PODEROSO CHEFINHO","BRUNO BRANCO","PETRÓPOLIS",90,21,null,"10º","SOBERANO","EDSON","PETRÓPOLIS",102,21,null,"10º","VINTE DOIS","ALISSON","TRÊS RIOS",88,21]
["11º","DEBOCHE","?","SAPUCAIA",72,20,null,"11º","PICA-PAU","ADÃO","TRÊS RIOS",85,20,null,"11º","RAGNAR","KLEBER","AREAL",100,20,null,"11º","BIRO BIRO","PAULINHO","TRÊS RIOS",83,20]
["12º","APOLLO","JOSÉ ROBERTO","PETRÓPOLIS",71,19,null,"12º","SEDEX","NATHAN","LEVY GASPARIAN",83,19,null,"12º","CIDADE ALERTA","HIGO BATALHA","TRÊS RIOS",91,19,null,"12º","TREM","TAIDISON","TRÊS RIOS",83,19]
["13º","BICO DE OURO","KLEBER","AREAL",68,18,null,"13º","ALUCINADO","BERNARDO","ANTA",83,18,null,"13º","PICA-PAU","ADÃO","TRÊS RIOS",90,18,null,"13º","SEDEX","NATHAN","LEVY GASPARIAN",82,18]
["14º","GLOCK","DOUGLAS","TRÊS RIOS",64,17,null,"14º","CRUEL","VITOR","PETRÓPOLIS",73,17,null,"14º","ALUCINADO","BERNARDO","ANTA",81,17,null,"14º","PSG","BETINHO","TRÊS RIOS",79,17]
["15º","TUBARÃO","MAURO JR.","TRÊS RIOS",58,16,null,"15º","FILHOTE","LUCIANO","TRÊS RIOS",62,16,null,"15º","TALISMÃ","REGINALDO","PETRÓPOLIS",78,16,null,"15º","GLORIOSO","ISAIAS","TRÊS RIOS",78,16]
["16º","GLORIOSO","ISAÍAS","TRÊS RIOS",56,15,null,"16º","BIRO BIRO","PAULINHO","TRÊS RIOS",53,15,null,"16º","LOUCO","CORREIA","CABO FRIO",76,15,null,"16º","COMETA","GIBA","TRÊS RIOS",74,15]
["17º","SABADÃO","CLODOALDO","TRÊS RIOS",53,14,null,"17º","TUBARÃO","MAURO JR.","TRÊS RIOS",51,14,null,"17º","SAFADAO","CLODOALDO","TRÊS RIOS",67,14,null,"17º","CRONOS","FABINHO","TRÊS RIOS",70,14]
["18º","V8","EDER","TRÊS RIOS",49,13,null,"18º","V8","EDER","TRÊS RIOS",44,13,null,"18º","BIRO BIRO","PAULINHO","TRÊS RIOS",67,13,null,"18º","001","ROBSON CAMPOS","PETRÓPOLIS",63,13]
["19º","MALVADAO","WILIAN DOUGLAS","TRÊS RIOS",45,12,null,"19º","MALVADÃO","BRUNO BRANCO","PETRÓPOLIS",39,12,null,"19º","ZANGADO","MATHEUS PASSOS","TRÊS RIOS",55,12,null,"19º","BICHO DOIDO","EDUARDO","TRÊS RIOS",53,12]
["20º","PICA PAU","ADÃO","TRÊS RIOS",40,11,null,"20º","FANTÁSTICO","EDUARDO","TRÊS RIOS",37,11,null,"20º","SPIDER","DAVISON","TRÊS RIOS",53,11,null,"20º","BORIS","VALDECIR","PETRÓPOLIS",51,11]

{"sheet":"mar23","index":3,"n_rows":22,"n_cols":27,"rows_kept":22,"cut":false,"hidden":false,"merged":[[0,0,0,5],[0,7,0,12],[0,14,0,19],[0,21,0,26]]}
["2023-03-05",null,null,null,null,null,null,"2023-03-12",null,null,null,null,null,null,"2023-03-19",null,null,null,null,null,null,"2023-03-26"]
["POS.","PÁSSARO","PROPRIETÁRIO","ORIGEM","CANTOS","PONTOS",null,"POS.","PÁSSARO","PROPRIETÁRIO","ORIGEM","CANTOS","PONTOS",null,"POS.","PÁSSARO","PROPRIETÁRIO","ORIGEM","CANTOS","PONTOS",null,"POS.","PÁSSARO","PROPRIETÁRIO","ORIGEM","CANTOS","PONTOS"]
["1º","IMPÉRIO","LUIZINHO","PETRÓPOLIS",176,30,null,"1º","CARIOQUINHA","JONAS","TRÊS RIOS",212,30,null,"1º","GOKUN","MATHEUS/LUCAS","JUIZ DE FORA",198,30,null,"1º","BONES","EDI WILSON","PETRÓPOLIS",182,30]
["2º","BRASILEIRINHO","GUSTAVO","BEMPOSTA",140,29,null,"2º","AGRO","REINALDO/LI","BARBACENA/MG",180,29,null,"2º","CARIOQUINHA","JONAS","TRÊS RIOS",188,29,null,"2º","CARIOQUINHA","JONAS","TRÊS RIOS",170,29]
["3º","PITBULL","FREDERICO","PETRÓPOLIS",119,28,null,"3º","PITBULL","FREDERICO","PETRÓPOLIS",166,28,null,"3º","IMPÉRIO","LUIZINHO","PETRÓPOLIS",183,28,null,"3º","IMPÉRIO","LUIZINHO","PETRÓPOLIS",150,28]
["4º","CARIOQUINHA","JONAS","TRÊS RIOS",116,27,null,"4º","IMPÉRIO","LUIZINHO","PETRÓPOLIS",140,27,null,"4º","MAVERICK","MARCÃO","JUIZ DE FORA",175,27,null,"4º","CARIOCA","FABIANO","JUIZ DE FORA",144,27]
["5º","PICA-PAU","ADÃO","TRÊS RIOS",106,26,null,"5º","LOBO MAU","RAFAEL LAMBARI","PETRÓPOLIS",131,26,null,"5º","CARIOCA","FABIANO","JUIZ DE FORA",174,26,null,"5º","GOKUN","MATHEUS/LUCAS","JUIZ DE FORA",143,26]
["6º","PALADINO","JOÃOZINHO","BEMPOSTA",104,25,null,"6º","VENOM","MURILO","TRÊS RIOS",121,25,null,"6º","BONES","EDIWILSON","PETRÓPOLIS",162,25,null,"6º","FAIXA PRETA","PAULO HENRIQUE","PETRÓPOLIS",142,25]
["7º","CHACAL","ROMÁRIO","PETRÓPOLIS",99,24,null,"7º","BRASILEIRINHO","GUSTAVO","BEMPOSTA",112,24,null,"7º","FAIXA PRETA","PAULO HENRIQUE","PETRÓPOLIS",155,24,null,"7º","PITBULL","FREDERICO","PETRÓPOLIS",132,24]
["8º","CABALA","LEVI","TRÊS RIOS",98,23,null,"8º","TREM","TAIDISON","TRÊS RIOS",111,23,null,"8º","CHACAL","ROMÁRIO","AREAL",131,23,null,"8º","COYOTE","GABRIEL","TRÊS RIOS",124,23]
["9º","TREM","TAIDISON","TRÊS RIOS",88,22,null,"9º","ZORRO","OTÁVIO","TRÊS RIOS",104,22,null,"9º","PITBULL","FREDERICO","PETRÓPOLIS",131,22,null,"9º","CASCAVEL","BRUNO BRANCO","PETRÓPOLIS",117,22]
["10º","TALISMÃ","REGINALDO","PETRÓPOLIS",79,21,null,"10º","TROVÃO","LUCIMAR/LUIZ HENRIQUE","TRÊS RIOS",102,21,null,"10º","ASTÚCIA","EDER","JUIZ DE FORA",128,21,null,"10º","TORPEDO","DAVISON","TRÊS RIOS",111,21]
["11º","TÔ LOUCO","HENRIQUE","TRÊS RIOS",79,20,null,"11º","MITO","LUIZINHO","PETRÓPOLIS",98,20,null,"11º","SEM LIMITE","ROMÁRIO","UBÁ",118,20,null,"11º","VEDITA","JOSÉ ALVES","SANTOS DUMONT",110,20]
["12º","TORPEDO","DAVISON","TRÊS RIOS",77,19,null,"12º","TALISMÃ","REGINALDO","PETRÓPOLIS",98,19,null,"12º","SR MIAGUI","NATHAN","LEVY GASPARIAN",110,19,null,"12º","MALUCO","GIBA","TRÊS RIOS",109,19]
["13º","MITO","LUIZINHO","PETRÓPOLIS",75,18,null,"13º","SR MIAGUI","NATHAN","LEVY GASPARIAN",94,18,null,"13º","RAGNAR","KLEBER","AREAL",110,18,null,"13º","NOVIDADE","CARLOS ALBERTO","JUIZ DE FORA",106,18]
["14º","MOLEQUE JR","WELLINGTON ARGON","PETRÓPOLIS",71,17,null,"14º","PICA-PAU","ADÃO","TRÊS RIOS",89,17,null,"14º","TREM BÃO","MARCELO SOJUF","JUIZ DE FORA",108,17,null,"14º","PEDREIRA","UILIAN","TRÊS RIOS",104,17]
["15º","KOWALSKI","RICHARDSON","LEVY GASPARIAN",67,16,null,"15º","PSG","BETINHO","TRÊS RIOS",88,16,null,"15º","PQD","CLEBER","TRÊS RIOS",105,16,null,"15º","FAIXA PRETA","CLEBER","TRÊS RIOS",102,16]
["16º","CANIBAL","LUCIANO","TRÊS RIOS",63,15,null,"16º","CABALA","LEVI","TRÊS RIOS",83,15,null,"16º","PICA-PAU","ADÃO","TRÊS RIOS",103,15,null,"16º","TALISMÃ","REGINALDO","PETRÓPOLIS",99,15]
["17º","SPARTA","RODRIGO TCHU","PETRÓPOLIS",62,14,null,"17º","MALUQUINHO","MURILO","AREAL",72,14,null,"17º","TREM","TAIDISON","TRÊS RIOS",95,14,null,"17º","WALTER","FÁBIO/WESLEY","?",95,14]
["18º","BARCELONA","LUCAS CHAGAS","PETRÓPOLIS",60,13,null,"18º","TROLL","MURILO","TRÊS RIOS",70,13,null,"18º","LIGEIRO","TONINHO","JUIZ DE FORA",93,13,null,"18º","PSG","BETINHO","TRÊS RIOS",89,13]
["19º","FANTÁSTICO","EDUARDO","TRÊS RIOS",55,12,null,"19º","WOLVERINE","ALCEIR","PETRÓPOLIS",65,12,null,"19º","A LENDA","STENIO","MATIAS BARBOSA",89,12,null,"19º","BAD BOY","TAUAN/MARQUINHOS","MAR DE ESPANHA",88,12]
["20º","FLECHA","CLODOALDO","TRÊS RIOS",49,11,null,"20º","THOR","RODRIGO","PETRÓPOLIS",61,11,null,"20º","VENOM","MURILO","TRÊS RIOS",86,11,null,"20º","BOA IDEIA","CÉSAR MANDÍBULA","PETRÓPOLIS",86,11]

{"sheet":"abr23","index":4,"n_rows":22,"n_cols":34,"rows_kept":22,"cut":false,"hidden":false,"merged":[[0,0,0,5],[0,7,0,12],[0,14,0,19],[0,21,0,26],[0,28,0,33]]}
["2023-04-02",null,null,null,null,null,null,"2023-04-09",null,null,null,null,null,null,"2023-04-16",null,null,null,null,null,null,"2023-04-23",null,null,null,null,null,null,"3023-04-30"]
["POS.","PÁSSARO","PROPRIETÁRIO","ORIGEM","CANTOS","PONTOS",null,"POS.","PÁSSARO","PROPRIETÁRIO","ORIGEM","CANTOS","PONTOS",null,"POS.","PÁSSARO","PROPRIETÁRIO","ORIGEM","CANTOS","PONTOS",null,"POS.","PÁSSARO","PROPRIETÁRIO","ORIGEM","CANTOS","PONTOS",null,"POS.","PÁSSARO","PROPRIETÁRIO","ORIGEM","CANTOS","PONTOS"]
["1º",null,null,null,null,30,null,"1º",null,null,null,null,30,null,"1º",null,null,null,null,30,null,"1º",null,null,null,null,30,null,"1º",null,null,null,null,30]
["2º",null,null,null,null,29,null,"2º",null,null,null,null,29,null,"2º",null,null,null,null,29,null,"2º",null,null,null,null,29,null,"2º",null,null,null,null,29]
["3º",null,null,null,null,28,null,"3º",null,null,null,null,28,null,"3º",null,null,null,null,28,null,"3º",null,null,null,null,28,null,"3º",null,null,null,null,28]
["4º",null,null,null,null,27,null,"4º",null,null,null,null,27,null,"4º",null,null,null,null,27,null,"4º",null,null,null,null,27,null,"4º",null,null,null,null,27]
["5º",null,null,null,null,26,null,"5º",null,null,null,null,26,null,"5º",null,null,null,null,26,null,"5º",null,null,null,null,26,null,"5º",null,null,null,null,26]
["6º",null,null,null,null,25,null,"6º",null,null,null,null,25,null,"6º",null,null,null,null,25,null,"6º",null,null,null,null,25,null,"6º",null,null,null,null,25]
["7º",null,null,null,null,24,null,"7º",null,null,null,null,24,null,"7º",null,null,null,null,24,null,"7º",null,null,null,null,24,null,"7º",null,null,null,null,24]
["8º",null,null,null,null,23,null,"8º",null,null,null,null,23,null,"8º",null,null,null,null,23,null,"8º",null,null,null,null,23,null,"8º",null,null,null,null,23]
["9º",null,null,null,null,22,null,"9º",null,null,null,null,22,null,"9º",null,null,null,null,22,null,"9º",null,null,null,null,22,null,"9º",null,null,null,null,22]
["10º",null,null,null,null,21,null,"10º",null,null,null,null,21,null,"10º",null,null,null,null,21,null,"10º",null,null,null,null,21,null,"10º",null,null,null,null,21]
["11º",null,null,null,null,20,null,"11º",null,null,null,null,20,null,"11º",null,null,null,null,20,null,"11º",null,null,null,null,20,null,"11º",null,null,null,null,20]
["12º",null,null,null,null,19,null,"12º",null,null,null,null,19,null,"12º",null,null,null,null,19,null,"12º",null,null,null,null,19,null,"12º",null,null,null,null,19]
["13º",null,null,null,null,18,null,"13º",null,null,null,null,18,null,"13º",null,null,null,null,18,null,"13º",null,null,null,null,18,null,"13º",null,null,null,null,18]
["14º",null,null,null,null,17,null,"14º",null,null,null,null,17,null,"14º",null,null,null,null,17,null,"14º",null,null,null,null,17,null,"14º",null,null,null,null,17]
["15º",null,null,null,null,16,null,"15º",null,null,null,null,16,null,"15º",null,null,null,null,16,null,"15º",null,null,null,null,16,null,"15º",null,null,null,null,16]
["16º",null,null,null,null,15,null,"16º",null,null,null,null,15,null,"16º",null,null,null,null,15,null,"16º",null,null,null,null,15,null,"16º",null,null,null,null,15]
["17º",null,null,null,null,14,null,"17º",null,null,null,null,14,null,"17º",null,null,null,null,14,null,"17º",null,null,null,null,14,null,"17º",null,null,null,null,14]
["18º",null,null,null,null,13,null,"18º",null,null,null,null,13,null,"18º",null,null,null,null,13,null,"18º",null,null,null,null,13,null,"18º",null,null,null,null,13]
["19º",null,null,null,null,12,null,"19º",null,null,null,null,12,null,"19º",null,null,null,null,12,null,"19º",null,null,null,null,12,null,"19º",null,null,null,null,12]
["20º",null,null,null,null,11,null,"20º",null,null,null,null,11,null,"20º",null,null,null,null,11,null,"20º",null,null,null,null,11,null,"20º",null,null,null,null,11]